[Event "Summer Chess Classic-B 2022"]
[Site "Saint Louis"]
[Date "2022.05.09"]
[Round "8.1"]
[White "Burke, John M"]
[Black "Antipov, Mikhail Al."]
[Result "0-1"]
[ECO "C54"]
[WhiteElo "2579"]
[BlackElo "2592"]
[Annotator "TA"]
[PlyCount "112"]
[EventDate "2022.05.31"]
[EventType "tourn"]
[EventCountry "USA"]
[SourceTitle "playchess.com"]
[Source "ChessBase"]
[SourceQuality "1"]
[TimeControl "40/5400+30:1800+30"]

{[%evp 12,112,13,14,29,7,23,14,26,0,13,0,0,0,-5,-15,-18,-20,0,-9,0,-20,-15,-31,-33,-45,-17,-19,-10,-28,0,0,0,0,-8,-25,21,24,30,0,66,29,53,49,52,43,41,28,87,3,7,0,44,0,0,0,0,-70,-77,-213,-219,-219,-218,-217,-207,-204,-214,-254,-257,-284,-269,-290,-287,-360,-246,-216,-224,-334,-333,-307,-325,-319,-312,-393,-351,-356,-345,-341,0,-339,-336,-308,-304,-282,-270,-490,-476,-479,-471,-925,-889,-1430,-747]} 1. e4 {[%emt 0:00:04]} e5 {[%emt 0:00:03]} 2. Nf3 {[%emt 0:00:07]} Nc6 {[%emt 0:00:02]} 3. Bc4 {[%emt 0:00:07]} Bc5 {[%emt 0:00:04]} 4. c3 {[%emt 0:00:07]} Nf6 {[%emt 0:00:03]} 5. d3 {[%emt 0:00:07]} d6 {[%emt 0:00:08]} 6. O-O {[%emt 0:00:15]} O-O {[%emt 0:03:36]} 7. Re1 {[%emt 0:01:40]} Bb6 {[%emt 0:06:34] C54: Giuoco Piano: 4 c3 Nf6, main lines with 5 d4 and 5 d3.} 8. h3 {[%emt 0:03:52]} h6 {[%emt 0:00:51]} 9. a4 {[%emt 0:09:47]} a5 {[%emt 0:00:05] The position is equal.} 10. Bb3 {[%emt 0:05:36]} Be6 {[%emt 0:08:21]} 11. Nbd2 {[%emt 0:04:33]} Re8 {[%emt 0:04:02] [#]} 12. Bc2 $146 {[%emt 0:12:58]} ({Predecessor:} 12. Bxe6 Rxe6 13. Nc4 Ba7 14. Be3 Bxe3 15. Nxe3 d5 16. exd5 Nxd5 17. Qb3 Nf4 18. Rad1 {0-1 (83) Sadhwani,R (2545)-Diaz Perez,M (2459) Chess.com INT 2020}) 12... d5 {[%emt 0:02:57]} 13. Nf1 {[%emt 0:08:20]} d4 {[%emt 0:06:10]} 14. Ng3 {[%emt 0:02:09]} Qd6 {[%emt 0:14:10]} 15. Bd2 {[%emt 0:03:26]} Kh7 {[%emt 0:03:14]} 16. Qe2 {[%emt 0:04:05]} Rad8 {[%emt 0:01:46]} 17. Kh1 {[%emt 0:01:07]} Nd7 {[%emt 0:05:38]} 18. Rad1 {[%emt 0:09:52]} Bc5 {[%emt 0:05:55]} (18... Nc5 {with more complications.} 19. b4 Nb3 20. Nf5 Qf8) 19. Rf1 {[%emt 0:06:24]} Qf8 {[%emt 0:03:11]} 20. Nh2 {[%emt 0:03:34]} b6 {[%emt 0:05:51]} 21. Nf5 {[%emt 0:01:49]} f6 {[%emt 0:05:53]} 22. h4 {[%emt 0:02:51]} Qf7 {[%emt 0:01:18]} 23. g4 {[%emt 0:01:11]} Nf8 {[%emt 0:05:47]} (23... Bf8 $142) 24. Rg1 $11 {[%emt 0:02:44]} Ng6 {[%emt 0:04:40]} 25. Qf3 {[%emt 0:00:13]} Nf4 {[%emt 0:01:20]} (25... Rg8 $11) 26. g5 {[%emt 0:02:11]} Bxf5 {[%emt 0:06:14] Active counter play!} 27. exf5 {[%emt 0:00:04] Black must now prevent g6+.} Qd5 {[%emt 0:00:03]} 28. Qxd5 {[%emt 0:01:18]} Rxd5 {[%emt 0:00:11]} 29. Bb3 {[%emt 0:01:44]} Rd6 {[%emt 0:01:10]} (29... Rdd8 $11) 30. gxh6 {[%emt 0:01:29]} ({White should try} 30. Bxf4 $16 exf4 31. Kg2) 30... gxh6 {[%emt 0:00:23][%cal Bg7h6,Bh6h5][%mdl 32]} 31. Bf7 {[%emt 0:05:39]} Re7 {[%emt 0:01:45]} 32. Bg6+ {[%emt 0:01:12]} Kh8 {[%emt 0:00:01]} 33. Bxf4 {[%emt 0:02:00]} exf4 {[%emt 0:00:01]} 34. Ng4 {[%emt 0:00:14]} (34. c4 $11) 34... h5 $1 $36 {[%emt 0:00:53][%mdl 2048] Black is on the roll. White is now going downhill.} 35. Nh2 {[%emt 0:00:55]} ({Don't blunder} 35. Bxh5 $2 Rh7 36. Bg6 Rxh4+ 37. Nh2 Ne5 $19) (35. Nh6 $17 {is the only way for White.} Ne5 36. b4 axb4 37. cxb4 Bxb4 38. Bxh5) 35... dxc3 $19 {[%emt 0:00:50]} 36. bxc3 {[%emt 0:00:01]} Bxf2 {[%emt 0:00:07]} 37. Rg2 {[%emt 0:01:32]} Bxh4 {[%emt 0:01:35]} 38. Bxh5 {[%emt 0:00:03]} Bg3 {[%emt 0:00:20]} 39. Bf3 {[%emt 0:00:57]} Ne5 {[%emt 0:01:07]} 40. Be4 {[%emt 0:00:19]} Nc4 {[%emt 0:03:33]} 41. Rc1 {[%emt 0:05:31]} Ne3 {[%emt 0:02:44]} 42. Rb2 {[%emt 0:00:06] [#]} Nd1 $1 {[%emt 0:12:57][%mdl 512]} 43. Rxd1 {[%emt 0:03:22] Rc1 is the strong threat.} Rxe4 $1 {[%emt 0:00:09][%mdl 64] Pin} 44. Nf1 {[%emt 0:03:34]} (44. Kg2 $142) 44... Re1 {[%emt 0:02:47]} ({Wrong is} 44... Rxa4 $2 45. d4 $19) 45. Rbb1 {[%emt 0:02:26]} Re2 {[%emt 0:00:17]} 46. d4 {[%emt 0:01:15]} Rd7 {[%emt 0:04:47][%cal Of4f3]} 47. Rd2 {[%emt 0:04:45]} Rh7+ {[%emt 0:02:20]} 48. Kg1 {[%emt 0:00:10]} Bh2+ {[%emt 0:00:05]} 49. Kh1 {[%emt 0:00:07]} Bg3+ {[%emt 0:00:06]} 50. Kg1 {[%emt 0:00:03]} Rxd2 {[%emt 0:00:55]} 51. Nxd2 {[%emt 0:00:04][%mdl 4096] Endgame KRB-KRN} Rh2 {[%emt 0:00:10]} 52. Ne4 {[%emt 0:01:36]} Ra2 {[%emt 0:01:13]} 53. Nxf6 $2 {[%emt 0:01:25] [#]} (53. Rf1) 53... f3 $1 {[%emt 0:00:54] ( -> ...Rg2+). Black is clearly winning.} 54. Ng4 {[%emt 0:09:56]} Rg2+ {[%emt 0:01:47]} 55. Kh1 {[%emt 0:00:06]} (55. Kf1 $142 Bf4 56. Ne5) 55... Bf4 {[%emt 0:01:17]} 56. Rg1 {[%emt 0:00:42]} b5 {[%emt 0:01:20] Weighted Error Value: White=0.42/Black=0.18 (very precise)} 0-1

[Event "Summer Chess Classic-B 2022"]
[Site "Saint Louis"]
[Date "2022.05.09"]
[Round "8.2"]
[White "Harutyunyan, Tigran K."]
[Black "Yoo, Christopher Woojin"]
[Result "1-0"]
[ECO "D43"]
[WhiteElo "2550"]
[BlackElo "2535"]
[Annotator "TA"]
[PlyCount "111"]
[EventDate "2022.05.31"]
[EventType "tourn"]
[EventCountry "USA"]
[SourceTitle "playchess.com"]
[Source "ChessBase"]
[SourceQuality "1"]
[TimeControl "40/5400+30:1800+30"]

{[%evp 13,111,22,24,22,9,7,9,2,24,0,0,0,0,0,0,0,0,0,0,0,0,0,31,26,34,39,20,13,116,119,118,118,114,123,283,282,354,354,355,342,457,460,442,452,520,459,466,456,649,646,710,690,1031,1011,987,1039,1025,1015,916,850,837,829,802,660,963,969,940,891,873,856,1028,992,1309,1450,1304,1366,1345,1273,1446,1356,1972,1948,1725,1720,2393,2300,2135,1974,29968,29970,29963,29965,7100,4439,3134,2929,29982,29983,29988,29989]} 1. Nf3 {[%emt 0:00:06]} Nf6 {[%emt 0:00:43]} 2. c4 {[%emt 0:00:10]} e6 {[%emt 0:00:11]} 3. Nc3 {[%emt 0:01:19]} d5 {[%emt 0:00:45]} 4. d4 {[%emt 0:00:08]} c6 {[%emt 0:01:07]} 5. Bg5 {[%emt 0:02:10]} h6 {[%emt 0:00:07]} 6. Bxf6 {[%emt 0:00:31]} Qxf6 {[%emt 0:00:06]} 7. e3 {[%emt 0:00:50]} g6 {[%emt 0:00:05]} 8. Bd3 {[%emt 0:00:33] D43: Semi-Slav: 5 Bg5 h6.} Bg7 {[%emt 0:00:06]} 9. O-O {[%emt 0:00:25]} O-O {[%emt 0:00:05]} 10. Rc1 {[%emt 0:01:35] The position is equal.} Qe7 {[%emt 0:07:51]} 11. Qe2 {[%emt 0:02:01]} Nd7 {[%emt 0:03:30]} 12. Rfd1 {[%emt 0:01:21]} dxc4 {[%emt 0:06:09]} 13. Bxc4 {[%emt 0:00:10]} e5 {[%emt 0:01:10][%cal Be6e5,Be5e4][%mdl 32]} 14. d5 {[%emt 0:02:02]} e4 $1 {[%emt 0:01:04]} 15. Nd2 {[%emt 0:18:06] [#]} Bxc3 $146 {[%emt 0:05:22]} ({Predecessor:} 15... Nf6 16. dxc6 bxc6 17. h3 Rd8 18. Nb3 {1-0 (18) Kirpikov,A-Marievsky,M RCCA 2004}) 16. d6 $36 {[%emt 0:06:11][%mdl 2048] White is pushing.} Qe5 {[%emt 0:05:58]} 17. Rxc3 {[%emt 0:00:23]} Nf6 {[%emt 0:01:44]} 18. f4 $1 {[%emt 0:11:54]} Qe8 {[%emt 0:01:28]} 19. h3 {[%emt 0:10:10] Prevents Bg4.} Bd7 {[%emt 0:01:07]} 20. Bb3 {[%emt 0:04:04] Black must now prevent Qc4.} Rd8 {[%emt 0:04:08] [#]} (20... Be6 $1 $11 {remains equal.}) 21. Qc4 $1 $16 {[%emt 0:05:48] Qd4 is the strong threat. White is more active.} Be6 {[%emt 0:05:46] [#]} 22. Nxe4 $1 {[%emt 0:14:42]} Nxe4 {[%emt 0:04:00]} 23. Qxe4 {[%emt 0:00:07]} Bf5 $2 {[%emt 0:00:18] This move loses the game for Black.} (23... Bxb3 $16 {was called for.} 24. Qxe8 Rfxe8 25. Rxb3 Rd7) 24. Qd4 $18 {[%emt 0:02:45]} b6 {[%emt 0:01:16]} 25. Qa4 {[%emt 0:00:31][%csl LRa7,LRc6]} c5 {[%emt 0:04:16]} 26. Qxa7 {[%emt 0:00:20]} Qc6 {[%emt 0:00:02]} 27. Bd5 {[%emt 0:02:54]} Qb5 {[%emt 0:01:30]} 28. Rb3 {[%emt 0:00:49]} Qe8 {[%emt 0:00:59]} 29. e4 {[%emt 0:04:08]} Bxe4 {[%emt 0:01:38] aiming for ...Bc2.} 30. Re1 {[%emt 0:02:17]} Bxd5 {[%emt 0:00:30]} (30... Qd7 $142 31. Qxd7 Rxd7) 31. Rxe8 {[%emt 0:01:24]} Rfxe8 {[%emt 0:03:45]} 32. Rxb6 {[%emt 0:00:07]} Re1+ {[%emt 0:00:45]} 33. Kf2 {[%emt 0:00:50]} Ree8 {[%emt 0:03:11]} 34. d7 {[%emt 0:00:29]} Rf8 {[%emt 0:00:22]} 35. Rd6 {[%emt 0:00:19][%csl LRc5,LRd5]} Be6 {[%emt 0:00:03]} 36. Qxc5 {[%emt 0:02:02]} Rxd7 {[%emt 0:00:06]} 37. Rxd7 {[%emt 0:00:19]} Bxd7 {[%emt 0:00:03][%mdl 4096] Endgame KQ-KRB} 38. Qd6 {[%emt 0:00:56]} Bb5 {[%emt 0:00:38]} 39. b3 {[%emt 0:00:21][%cal Bb2b3,Bb3b4,Bb4b5,Bb5b6][%mdl 32]} Rc8 {[%emt 0:00:12]} 40. Qd2 {[%emt 0:00:50]} Bc6 {[%emt 0:00:07]} 41. Qd3 {[%emt 0:30:59]} Bb7 {[%emt 0:31:59]} 42. a4 {[%emt 0:01:51]} Rc1 {[%emt 0:00:05]} 43. b4 {[%emt 0:00:43]} Bc8 {[%emt 0:00:07]} 44. b5 {[%emt 0:00:41]} Bf5 {[%emt 0:00:04]} 45. Qd8+ {[%emt 0:00:15]} Kh7 {[%emt 0:00:05]} 46. g4 {[%emt 0:00:00]} Be6 {[%emt 0:00:00]} 47. b6 {[%emt 0:00:00]} Rc2+ {[%emt 0:00:00]} 48. Ke3 {[%emt 0:00:00] And now b7 would win.} Rc3+ {[%emt 0:00:00]} 49. Kd2 {[%emt 0:00:00]} Rb3 {[%emt 0:00:00]} 50. Kc2 {[%emt 0:00:00]} Rb4 {[%emt 0:00:00]} 51. Qd6 {[%emt 0:00:00]} Rc4+ {[%emt 0:00:00]} 52. Kb2 {[%emt 0:00:00]} Bc8 {[%emt 0:00:00]} 53. a5 {[%emt 0:00:00] White threatens Qf8 and mate.} Kg7 {[%emt 0:00:00] Inhibits Qf8+.} 54. Qe5+ {[%emt 0:00:00]} Kf8 {[%emt 0:00:00]} 55. f5 {[%emt 0:00:00][%cal Bf4f5,Bf5f6][%mdl 32]} Rc6 {[%emt 0:00:00]} 56. f6 {[%emt 0:00:00] Weighted Error Value: White=0.04 (flawless) /Black=0.36} 1-0

[Event "Summer Chess Classic-B 2022"]
[Site "Saint Louis"]
[Date "2022.05.09"]
[Round "8.4"]
[White "Vazquez, Guillermo"]
[Black "Zhou, Jianchao"]
[Result "1/2-1/2"]
[ECO "B22"]
[WhiteElo "2557"]
[BlackElo "2589"]
[Annotator "TA"]
[PlyCount "70"]
[EventDate "2022.05.31"]
[EventType "tourn"]
[EventCountry "USA"]
[SourceTitle "playchess.com"]
[Source "ChessBase"]
[SourceQuality "1"]
[TimeControl "40/5400+30:1800+30"]

{[%evp 20,70,35,43,45,28,68,0,0,0,0,-15,-17,-22,0,0,0,0,0,0,0,0,12,8,8,0,0,0,4,0,0,0,0,0,0,0,0,0,0,0,0,0,0,0,0,0,0,0,0,0,0,0,0]} 1. e4 {[%emt 0:00:11]} c5 {[%emt 0:00:04]} 2. Nf3 {[%emt 0:00:30]} e6 {[%emt 0:00:21]} 3. c3 {[%emt 0:01:04][%cal Bc2c3,Bc3d4,Bd4e5][%mdl 32]} Nf6 {[%emt 0:00:21]} 4. e5 {[%emt 0:00:15]} Nd5 {[%emt 0:00:05]} 5. d4 {[%emt 0:00:24]} cxd4 {[%emt 0:00:09]} 6. cxd4 {[%emt 0:00:07]} d6 {[%emt 0:00:10]} 7. Bc4 {[%emt 0:01:19]} Be7 {[%emt 0:01:21]} 8. O-O {[%emt 0:00:18]} Nc6 {[%emt 0:04:14]} 9. Qe2 {[%emt 0:01:16]} O-O {[%emt 0:01:08]} 10. Qe4 {[%emt 0:02:24]} dxe5 {[%emt 0:12:42]} 11. dxe5 {[%emt 0:00:17]} Qb6 {[%emt 0:00:11] [#] B22: Sicilian: 2 c3.} 12. h4 $146 {[%emt 0:10:04]} ({Predecessor:} 12. Nc3 Ncb4 13. a3 Nxc3 14. bxc3 Nd5 15. Bd3 f5 16. exf6 Nxf6 17. Qh4 Qc7 18. Bb2 h6 19. c4 {½-½ (32) Janovsky,S (2445)-Werndl,E Werfen 1993}) 12... Bd7 {[%emt 0:03:56]} 13. Nbd2 {[%emt 0:07:06]} ({Better is} 13. Nc3 $14) 13... Na5 $11 {[%emt 0:05:57] The position is equal.} 14. Bd3 {[%emt 0:14:12][%csl Gd3][%cal Re4h7] [#]} ({Reject} 14. Bxd5 exd5 15. Qf4 (15. Qxd5 Bb5 $17) 15... f6 $15) 14... g6 {[%emt 0:00:25]} 15. Nc4 {[%emt 0:00:59]} Nxc4 {[%emt 0:02:02]} 16. Bxc4 {[%emt 0:00:03]} Bb5 {[%emt 0:12:32]} 17. b3 {[%emt 0:04:55][%cal Oh4h5]} Rac8 {[%emt 0:13:07]} 18. Bd2 {[%emt 0:05:45] Inhibits Nc3.} Qa6 {[%emt 0:02:30][%cal Rb5c4]} 19. Bxb5 {[%emt 0:04:07]} Qxb5 {[%emt 0:00:22]} 20. h5 {[%emt 0:00:09]} Nc3 {[%emt 0:02:23]} 21. Bxc3 {[%emt 0:04:29]} Rxc3 {[%emt 0:00:15]} 22. Rac1 {[%emt 0:00:08]} Rcc8 {[%emt 0:09:30]} 23. Rfd1 {[%emt 0:03:26]} a6 {[%emt 0:06:01]} 24. Qf4 {[%emt 0:05:21]} Rxc1 {[%emt 0:15:03]} 25. Rxc1 {[%emt 0:00:12]} Qd7 {[%emt 0:01:06] Prevents Rc7.} 26. Ng5 {[%emt 0:10:53]} h6 {[%emt 0:02:27]} 27. Ne4 {[%emt 0:00:37]} g5 {[%emt 0:01:07]} 28. Nf6+ {[%emt 0:05:07]} Bxf6 {[%emt 0:00:06]} 29. Qxf6 {[%emt 0:00:05]} Rc8 {[%emt 0:00:26]} 30. Rxc8+ {[%emt 0:01:27]} Qxc8 {[%emt 0:00:02] KQ-KQ} 31. Kh2 {[%emt 0:00:16]} Qc1 {[%emt 0:00:54]} 32. Qd8+ {[%emt 0:01:58]} Kg7 {[%emt 0:00:15]} 33. Qf6+ {[%emt 0:00:09]} Kg8 {[%emt 0:00:07]} 34. Qd8+ {[%emt 0:00:06]} Kg7 {[%emt 0:00:07]} 35. Qf6+ {[%emt 0:00:07]} Kg8 {[%emt 0:00:05] Weighted Error Value: White=0.05 (flawless) /Black=0.04 (flawless)} 1/2-1/2

[Event "Summer Chess Classic-B 2022"]
[Site "Saint Louis"]
[Date "2022.05.09"]
[Round "8.5"]
[White "Checa, Nicolas"]
[Black "Dragun, Kamil"]
[Result "1/2-1/2"]
[ECO "D38"]
[WhiteElo "2533"]
[BlackElo "2571"]
[Annotator "TA"]
[PlyCount "86"]
[EventDate "2022.05.31"]
[EventType "tourn"]
[EventCountry "USA"]
[SourceTitle "playchess.com"]
[Source "ChessBase"]
[SourceQuality "1"]
[TimeControl "40/5400+30:1800+30"]

{[%evp 10,86,13,16,14,0,0,0,0,4,21,-19,-18,-26,-16,-13,-14,-18,-14,-18,-6,-12,-13,-20,-20,-41,-43,-56,-54,-51,-18,-17,-18,-62,-62,-63,-68,-68,-78,-54,-12,-15,-15,-52,-62,-52,-55,-60,-36,-33,-34,-33,-19,-19,-20,-156,0,0,0,-168,0,0,0,0,0,0,0,0,0,0,0,0,0,0,0,0,0,0,0]} 1. d4 {[%emt 0:00:03]} Nf6 {[%emt 0:00:08]} 2. c4 {[%emt 0:00:05]} e6 {[%emt 0:00:08]} 3. Nf3 {[%emt 0:00:38]} d5 {[%emt 0:00:17]} 4. Nc3 {[%emt 0:00:10]} Bb4 {[%emt 0:00:27]} 5. Qb3 {[%emt 0:06:50]} c5 {[%emt 0:01:06]} 6. dxc5 {[%emt 0:00:05]} Na6 {[%emt 0:00:39][%cal Bb8a6,Ba6c5,Bc5b3][%mdl 32] D38: Queen's Gambit Declined: Ragozin Defence (4 Nf3 Bb4).} 7. a3 {[%emt 0:00:27]} Bxc3+ {[%emt 0:00:25]} 8. Qxc3 {[%emt 0:00:13] And now b4 would win.} Nxc5 {[%emt 0:00:13]} 9. cxd5 {[%emt 0:00:07]} Qxd5 {[%emt 0:00:26] [#]} 10. Qe5 $146 {[%emt 0:01:32]} ({Predecessor:} 10. Be3 Nce4 11. Qe5 Qxe5 12. Nxe5 Nd5 13. Bc1 Bd7 14. f3 Nc5 15. e4 Nb3 16. Rb1 {½-½ (35) Vallejo Pons,F (2694)-Wojtaszek,R (2748) Batumi 2019}) 10... Nb3 {[%emt 0:22:45]} 11. Rb1 {[%emt 0:03:53]} O-O {[%emt 0:01:04]} 12. e3 {[%emt 0:06:35]} Bd7 {[%emt 0:09:01]} 13. Qxd5 {[%emt 0:00:31]} exd5 {[%emt 0:00:35]} 14. Bd3 {[%emt 0:00:19] Inhibits Bf5.} Rac8 {[%emt 0:02:31]} 15. Bd2 {[%emt 0:05:30]} Ne4 {[%emt 0:02:15] Pair of Knights!} 16. Bb4 {[%emt 0:04:07]} Rfe8 {[%emt 0:02:03]} 17. Bxe4 {[%emt 0:04:18]} dxe4 {[%emt 0:00:35]} 18. Nd4 {[%emt 0:01:07]} Nxd4 {[%emt 0:10:52]} 19. exd4 {[%emt 0:00:21]} e3 {[%emt 0:00:03]} 20. fxe3 {[%emt 0:01:26]} Bf5 {[%emt 0:04:15]} 21. Rd1 {[%emt 0:01:42]} Bg4 {[%emt 0:01:11] Strongly threatening ...Rc2.} 22. Rb1 {[%emt 0:01:41]} Rxe3+ {[%emt 0:04:36]} 23. Kf2 {[%emt 0:00:07]} Re2+ {[%emt 0:02:42]} 24. Kg3 {[%emt 0:00:21]} Bf5 {[%emt 0:02:05]} 25. Rhe1 {[%emt 0:04:08]} Rec2 {[%emt 0:00:47]} 26. Re7 {[%emt 0:04:29]} h5 {[%emt 0:02:27][%cal Oh5h4]} 27. h4 {[%emt 0:01:52]} (27. Rxb7 $2 Be4 28. Re7 Rxg2+ 29. Kh3 Rg4 30. Rxe4 Rxe4 $19) 27... R8c6 {[%emt 0:03:40] Threatens to win with ...Rg6+.} 28. d5 {[%emt 0:05:10][%cal Bd4d5,Bd5d6,Bd6d7][%mdl 32]} Rg6+ {[%emt 0:08:17]} 29. Kf4 $1 {[%emt 0:01:38]} Rf2+ {[%emt 0:00:01]} 30. Ke3 {[%emt 0:00:05]} Rgxg2 {[%emt 0:00:06]} 31. d6 $1 {[%emt 0:19:12]} Re2+ {[%emt 0:06:41]} 32. Kf4 {[%emt 0:01:21] [#]} (32. Kd4 $11 {was the only way to keep the balance.}) 32... Ref2+ $2 {[%emt 0:04:26]} ({Worse is} 32... Bxb1 33. d7 Rgf2+ 34. Kg3 Rg2+ 35. Kf4 Ref2+ 36. Ke3 Re2+ 37. Kf4 $11) (32... Be4 $1 $17 33. Re1 (33. Re8+ $2 Kh7 $19) 33... Rgf2+ 34. Ke5 Rf5+ 35. Kd4 Rd5+ 36. Kc4 b5+ 37. Kb3 Rd3+ 38. Ka2 Rxe1 39. Bxe1 Bd5+ 40. b3 Bxb3+ 41. Kb2 Be6 42. Rxa7 Rxd6) 33. Ke3 $1 $11 {[%emt 0:00:07]} Re2+ $2 {[%emt 0:04:11]} (33... Bxb1 $11 34. d7 Re2+ 35. Kf3 Ref2+ 36. Ke3 Re2+ 37. Kf3 Rgf2+ 38. Kg3 Rg2+ 39. Kf3) 34. Kf4 $19 {[%emt 0:00:15] [#] Black must now prevent Rxe2.} Bxb1 $2 {[%emt 0:03:29]} ({Better is} 34... Be4 $1 $19 {( -> ...Rg4+)} 35. Re1 (35. Re8+ $2 Kh7 $19) 35... Rgf2+ 36. Ke5 Rf5+ 37. Kd4 Rd5+ 38. Kc4 b5+ 39. Kb3 Rd3+ 40. Ka2 Rxe1 41. Bxe1 Bd5+ 42. b3 Bxb3+ 43. Kb2 Be6 44. Rxa7 Rxd6 45. Ra8+ Kh7) 35. d7 $11 {[%emt 0:00:27] The position is equal.} Rgf2+ {[%emt 0:00:10]} 36. Kg3 {[%emt 0:00:13]} Rg2+ {[%emt 0:00:02]} 37. Kf4 {[%emt 0:01:29]} Rgf2+ {[%emt 0:01:37]} 38. Kg3 {[%emt 0:00:11]} Rg2+ {[%emt 0:00:12]} 39. Kf4 {[%emt 0:00:13]} g5+ {[%emt 0:01:23]} 40. hxg5 {[%emt 0:00:07]} Rgf2+ {[%emt 0:00:09]} 41. Kg3 {[%emt 0:30:19] Rxe2 would kill now.} Rg2+ {[%emt 0:31:20]} 42. Kf4 {[%emt 0:00:12]} Rgf2+ {[%emt 0:00:40]} 43. Kg3 {[%emt 0:00:06]} Rg2+ {[%emt 0:00:54] Weighted Error Value: White=0.10 (very precise) /Black=0.15 (very precise)} 1/2-1/2

[Event "Summer Chess Classic-B 2022"]
[Site "Saint Louis"]
[Date "2022.06.10"]
[Round "9.1"]
[White "Dragun, Kamil"]
[Black "Harutyunyan, Tigran K."]
[Result "1-0"]
[ECO "C54"]
[WhiteElo "2571"]
[BlackElo "2550"]
[Annotator "TA"]
[PlyCount "53"]
[EventDate "2022.05.31"]
[EventType "tourn"]
[EventCountry "USA"]
[SourceTitle "playchess.com"]
[Source "ChessBase"]
[SourceQuality "1"]
[TimeControl "40/5400+30:1800+30"]

{[%evp 10,53,15,6,10,2,16,8,22,8,18,23,40,13,68,67,68,77,60,71,57,66,68,67,1240,1240,1225,1224,1299,1299,1220,1155,29985,29986,29986,29987,29987,29988,29988,29989,29989,29990,29990,29991,29992,1164]} 1. e4 {[%emt 0:00:21]} e5 {[%emt 0:00:33]} 2. Nf3 {[%emt 0:00:11]} Nc6 {[%emt 0:00:09]} 3. Bc4 {[%emt 0:00:15]} Bc5 {[%emt 0:00:08]} 4. d3 {[%emt 0:00:12]} Nf6 {[%emt 0:00:57]} 5. c3 {[%emt 0:00:55]} d6 {[%emt 0:00:20]} 6. Bg5 {[%emt 0:00:20][%cal Bc1g5,Bg5h4,Bh4g3][%mdl 32]} a6 {[%emt 0:01:47] C54: Giuoco Piano: 4 c3 Nf6, main lines with 5 d4 and 5 d3.} 7. Nbd2 {[%emt 0:01:33]} Ba7 {[%emt 0:00:28]} 8. O-O {[%emt 0:00:26]} h6 {[%emt 0:01:16] The position is equal.} 9. Bh4 {[%emt 0:00:10]} g5 {[%emt 0:04:52]} 10. Bg3 {[%emt 0:00:21]} Na5 {[%emt 0:00:44]} 11. Bd5 {[%emt 0:05:38]} c6 {[%emt 0:03:09] [#]} ({Better is} 11... O-O $11) 12. Bxf7+ $1 $14 {[%emt 0:01:15]} Kxf7 {[%emt 0:00:32]} 13. b4 {[%emt 0:00:10] [#]} Kg7 $146 {[%emt 0:12:17][%cal Ob7b5]} ({Predecessor:} 13... Be6 14. Qa4 b5 15. Qxa5 Qxa5 16. bxa5 Nh5 17. Bxe5 dxe5 18. Nxe5+ Ke8 19. Nxc6 Nf4 {½-½ (57) Sorroche Lupion,F (2361)-Marcotulli,G (2200) SEMI email 2001}) 14. bxa5 {[%emt 0:01:40]} Nh5 {[%emt 0:00:22]} 15. d4 {[%emt 0:03:26]} Nxg3 {[%emt 0:01:13]} 16. fxg3 {[%emt 0:08:00]} Qxa5 $2 {[%emt 0:02:10][%mdl 8192] [#]} (16... Be6 $14) 17. Nxg5 $1 $18 {[%emt 0:17:36][%mdl 512]} hxg5 {[%emt 0:34:44]} 18. Qf3 {[%emt 0:00:35] Qf7+ would kill now.} Qc7 {[%emt 0:00:21] Prevents Qf7+.} 19. Qf6+ {[%emt 0:00:12]} Kh7 {[%emt 0:00:14]} 20. Nf3 {[%emt 0:00:49]} Kg8 {[%emt 0:00:37]} 21. Nxg5 {[%emt 0:01:32][%csl Gf1][%cal Rf6f8] White mates.} Bg4 {[%emt 0:04:41]} 22. Ne6 {[%emt 0:00:18]} Bxe6 {[%emt 0:01:31]} 23. Qxe6+ {[%emt 0:00:31]} Kg7 {[%emt 0:00:21]} 24. Qg4+ {[%emt 0:00:16]} Kh7 {[%emt 0:00:38]} 25. Rf5 {[%emt 0:00:24][%cal Rf5h5]} Qg7 {[%emt 0:00:15]} 26. Rh5+ {[%emt 0:00:10]} Qh6 {[%emt 0:01:18]} 27. Qd7+ {[%emt 0:00:27] Black got outplayed after the opening.  Weighted Error Value: White=0.01 (flawless) /Black=0.48} (27. Rf1 $142 Rhf8 28. Qd7+ Kg8 29. Rxf8+ Rxf8 30. Rxh6 Bxd4+ 31. cxd4 Rf6 32. Rxf6 exd4 33. Qf7+ Kh8 34. Rh6#) 1-0